[Event "44th Chess Olympiad Women 2022"]
[Site "Chennai"]
[Date "2022.08.05"]
[Round "7.48"]
[White "Castro, Neusa Aridas De"]
[Black "Al Mansouri, Moza"]
[Result "0-1"]
[WhiteElo "1531"]
[BlackElo "1606"]
[Annotator "NA"]
[PlyCount "126"]
[EventDate "2022.??.??"]
[TimeControl "60"]

1. e4 {[%emt 0:02:40]} c5 {[%emt 0:00:03]} 2. Nf3 {[%emt 0:00:39]} d6 {[%emt 0:
00:00]} 3. Bc4 {[%emt 0:01:09]} Nf6 {[%emt 0:00:19]} 4. d3 {[%emt 0:00:23]} Nc6
{[%emt 0:00:10]} 5. c3 {[%emt 0:01:13]} g6 {[%emt 0:00:08]} 6. O-O {[%emt 0:00:
00]} Bg7 {[%emt 0:00:05]} 7. Bg5 {[%emt 0:00:34]} O-O {[%emt 0:02:04]} 8. Bb3 {
[%emt 0:00:06]} h6 {[%emt 0:01:40]} 9. Bh4 {[%emt 0:01:46]} b5 {[%emt 0:02:05]}
10. Nbd2 {[%emt 0:01:31]} a5 {[%emt 0:00:51]} 11. d4 {[%emt 0:02:12]} cxd4 {
[%emt 0:08:52]} 12. Nxd4 {[%emt 0:00:18]} Nxd4 {[%emt 0:01:29]} 13. cxd4 {
[%emt 0:00:18]} Qb6 {[%emt 0:06:44]} 14. e5 {[%emt 0:00:32]} dxe5 {[%emt 0:00:
00]} 15. dxe5 {[%emt 0:00:12]} Ng4 {[%emt 0:01:47]} 16. Bxe7 {[%emt 0:02:05]}
Re8 {[%emt 0:03:32]} 17. Qf3 {[%emt 0:06:22]} Be6 {[%emt 0:03:56]} 18. Bf6 {
[%emt 0:03:33]} Nxe5 {[%emt 0:01:47]} 19. Bxe5 {[%emt 0:00:30]} Bxe5 {[%emt 0:
00:00]} 20. Bxe6 {[%emt 0:00:23]} Qxe6 {[%emt 0:00:42]} 21. Rfe1 {[%emt 0:00:
00]} Bxh2+ {[%emt 0:05:19]} 22. Kh1 {[%emt 0:03:29]} Qd7 {[%emt 0:07:18]} 23.
Ne4 {[%emt 0:05:19]} Be5 {[%emt 0:00:21]} 24. Nc5 {[%emt 0:01:37]} Qd4 {
[%emt 0:03:19]} 25. Nd3 {[%emt 0:00:42]} Qh4+ {[%emt 0:01:07]} 26. Qh3 {
[%emt 0:01:27]} Qxh3+ {[%emt 0:00:11]} 27. gxh3 {[%emt 0:00:09]} Bg7 {[%emt 0:
00:00]} 28. Kg2 {[%emt 0:08:44]} Red8 {[%emt 0:05:42]} 29. Rad1 {[%emt 0:00:34]
} b4 {[%emt 0:00:51]} 30. b3 {[%emt 0:00:23]} Bc3 {[%emt 0:00:39]} 31. Rf1 {
[%emt 0:01:04]} Rd5 {[%emt 0:04:31]} 32. Nf4 {[%emt 0:01:47]} Rg5+ {[%emt 0:00:
00]} 33. Kf3 {[%emt 0:00:09]} Rf5 {[%emt 0:00:29]} 34. Rd5 {[%emt 0:00:49]} Be5
{[%emt 0:01:41]} 35. Ke4 {[%emt 0:01:05]} Re8 {[%emt 0:00:43]} 36. Nxg6 {
[%emt 0:01:37]} fxg6 {[%emt 0:00:39]} 37. Rdd1 {[%emt 0:00:47]} Bc3+ {[%emt 0:
00:00]} 38. Kd3 {[%emt 0:00:19]} Rf3+ {[%emt 0:02:15]} 39. Kc4 {[%emt 0:01:13]}
Re2 {[%emt 0:01:02]} 40. Rd8+ {[%emt 0:01:02]} Kf7 {[%emt 0:00:07]} 41. Rfd1 {
[%emt 0:30:16]} Rfxf2 {[%emt 0:30:47]} 42. R8d7+ {[%emt 0:01:15]} Re7 {[%emt 0:
00:00]} 43. R7d5 {[%emt 0:00:17]} Rxa2 {[%emt 0:00:41]} 44. Rf1+ {[%emt 0:00:
00]} Kg7 {[%emt 0:00:09]} 45. Rd8 {[%emt 0:01:07]} Rc2 {[%emt 0:03:03]} 46. Rd3
{[%emt 0:02:32]} Bf6+ {[%emt 0:02:31]} 47. Kb5 {[%emt 0:00:46]} Re5+ {[%emt 0:
00:00]} 48. Ka6 {[%emt 0:00:25]} Rc6+ {[%emt 0:01:51]} 49. Kb7 {[%emt 0:00:19]}
Rce6 {[%emt 0:01:25]} 50. Rfd1 {[%emt 0:00:36]} Re3 {[%emt 0:00:27]} 51. Rd7+ {
[%emt 0:00:43]} Re7 {[%emt 0:00:03]} 52. Rxe7+ {[%emt 0:00:00]} Bxe7 {[%emt 0:
00:00]} 53. Ka6 {[%emt 0:00:00]} Rxb3 {[%emt 0:00:00]} 54. Kxa5 {[%emt 0:00:00]
} Rxh3 {[%emt 0:00:00]} 55. Ka4 {[%emt 0:00:00]} g5 {[%emt 0:00:00]} 56. Re1 {
[%emt 0:00:00]} Kf7 {[%emt 0:00:00]} 57. Rf1+ {[%emt 0:00:00]} Kg6 {[%emt 0:00:
00]} 58. Re1 {[%emt 0:00:00]} Bf6 {[%emt 0:00:00]} 59. Rf1 {[%emt 0:00:00]} b3
{[%emt 0:00:00]} 60. Ka3 {[%emt 0:00:00]} b2+ {[%emt 0:00:00]} 61. Ka2 {
[%emt 0:00:00]} g4 {[%emt 0:00:00]} 62. Kb1 {[%emt 0:00:00]} Ra3 {[%emt 0:00:
00]} 63. Kc2 {[%emt 0:05:09]} Ra1 {[%emt 0:00:00]} 0-1

[Event "44th Chess Olympiad Women 2022"]
[Site "Chennai"]
[Date "2022.08.05"]
[Round "7.48"]
[White "Rouda Essa, Alserkal"]
[Black "Naira Sinoia"]
[Result "1-0"]
[WhiteElo "1874"]
[BlackElo "1116"]
[Annotator "NA"]
[PlyCount "71"]
[EventDate "2022.??.??"]
[TimeControl "60"]

1. e4 {[%emt 0:00:03]} e5 {[%emt 0:00:21]} 2. Nf3 {[%emt 0:00:05]} Nc6 {
[%emt 0:01:16]} 3. Bb5 {[%emt 0:00:07]} d6 {[%emt 0:00:21]} 4. c3 {[%emt 0:00:
00]} Bd7 {[%emt 0:00:23]} 5. O-O {[%emt 0:02:02]} Nf6 {[%emt 0:00:26]} 6. Re1 {
[%emt 0:00:59]} Be7 {[%emt 0:00:13]} 7. d4 {[%emt 0:00:16]} exd4 {[%emt 0:00:
00]} 8. cxd4 {[%emt 0:00:06]} O-O {[%emt 0:00:15]} 9. h3 {[%emt 0:01:24]} h6 {
[%emt 0:03:09]} 10. Nc3 {[%emt 0:00:26]} Nh7 {[%emt 0:03:51]} 11. Nd5 {[%emt 0:
00:00]} Bf6 {[%emt 0:02:07]} 12. Ba4 {[%emt 0:03:24]} Re8 {[%emt 0:00:28]} 13.
Bc2 {[%emt 0:01:15]} a6 {[%emt 0:03:30]} 14. Qd3 {[%emt 0:02:57]} Nf8 {[%emt 0:
00:00]} 15. Bf4 {[%emt 0:07:41]} Be6 {[%emt 0:01:32]} 16. Nxf6+ {[%emt 0:02:40]
} Qxf6 {[%emt 0:00:18]} 17. Bd2 {[%emt 0:02:50]} Bd7 {[%emt 0:01:21]} 18. Bc3 {
[%emt 0:03:56]} Qd8 {[%emt 0:03:34]} 19. Nh2 {[%emt 0:02:52]} Ne7 {[%emt 0:00:
00]} 20. d5 {[%emt 0:07:59]} Neg6 {[%emt 0:00:35]} 21. Qd4 {[%emt 0:05:13]} f6
{[%emt 0:01:31]} 22. Qe3 {[%emt 0:04:36]} c6 {[%emt 0:01:18]} 23. dxc6 {
[%emt 0:10:32]} Bxc6 {[%emt 0:00:16]} 24. Qg3 {[%emt 0:00:18]} Qc7 {[%emt 0:00:
00]} 25. Rad1 {[%emt 0:01:59]} Rad8 {[%emt 0:00:49]} 26. f4 {[%emt 0:00:49]}
Kh7 {[%emt 0:20:02]} 27. h4 {[%emt 0:02:14]} h5 {[%emt 0:17:39]} 28. Qf3 {
[%emt 0:02:28]} Kh6 {[%emt 0:00:53]} 29. f5 {[%emt 0:03:21]} Nxh4 {[%emt 0:00:
00]} 30. Qf4+ {[%emt 0:00:44]} g5 {[%emt 0:00:57]} 31. fxg6+ {[%emt 0:00:24]}
Kxg6 {[%emt 0:00:26]} 32. Qxf6+ {[%emt 0:00:17]} Kh7 {[%emt 0:00:15]} 33. Qh8+
{[%emt 0:00:35]} Kg6 {[%emt 0:00:23]} 34. e5+ {[%emt 0:01:21]} Nf5 {[%emt 0:00:
00]} 35. Bxf5+ {[%emt 0:01:56]} Kxf5 {[%emt 0:00:16]} 36. Qf6# {[%emt 0:00:08]}
1-0

[Event "44th Chess Olympiad Women 2022"]
[Site "Chennai"]
[Date "2022.08.05"]
[Round "7.49"]
[White "Banda Natalie Katlo"]
[Black "Razafindratina, Mariam Clarisse"]
[Result "1-0"]
[WhiteElo "1688"]
[BlackElo "1318"]
[Annotator "NA RC"]
[PlyCount "79"]
[EventDate "2022.??.??"]
[TimeControl "60"]

1. d4 {[%emt 0:00:04]} d5 {[%emt 0:00:00]} 2. Nf3 {[%emt 0:00:08]} Nf6 {
[%emt 0:00:00]} 3. e3 {[%emt 0:00:09]} e6 {[%emt 0:00:02]} 4. Nbd2 {[%emt 0:00:
00]} b6 {[%emt 0:00:42]} 5. Bb5+ {[%emt 0:00:23]} Nbd7 {[%emt 0:00:27]} 6. Bc6
{[%emt 0:00:30]} Rb8 {[%emt 0:00:09]} 7. Ne5 {[%emt 0:00:26]} Bd6 {[%emt 0:00:
00]} 8. Ndf3 {[%emt 0:00:19]} h6 {[%emt 0:00:56]} 9. c3 {[%emt 0:00:29]} Bb7 {
[%emt 0:00:21]} 10. Qa4 {[%emt 0:01:05]} a5 {[%emt 0:04:21]} 11. Bxb7 {[%emt 0:
00:00]} Rxb7 {[%emt 0:00:23]} 12. Nxd7 {[%emt 0:00:54]} Nxd7 {[%emt 0:00:12]}
13. Bd2 {[%emt 0:03:25]} O-O {[%emt 0:00:07]} 14. Qc2 {[%emt 0:02:35]} c5 {
[%emt 0:02:39]} 15. O-O {[%emt 0:02:47]} Re8 {[%emt 0:00:25]} 16. e4 {[%emt 0:
00:00]} Be7 {[%emt 0:10:01]} 17. exd5 {[%emt 0:04:04]} exd5 {[%emt 0:00:32]}
18. Rfe1 {[%emt 0:01:15]} Nf6 {[%emt 0:00:51]} 19. Bf4 {[%emt 0:05:09]} c4 {
[%emt 0:05:26]} 20. Re2 {[%emt 0:01:47]} Ne4 {[%emt 0:01:55]} 21. Nd2 {[%emt 0:
00:00]} Bg5 {[%emt 0:02:43]} 22. Bxg5 {[%emt 0:00:49]} hxg5 {[%emt 0:00:35]}
23. Nxc4 {[%emt 0:01:21]} Rbe7 {[%emt 0:03:53]} 24. Ne5 {[%emt 0:01:47]} Qd6 {
[%emt 0:03:50]} 25. f3 {[%emt 0:01:35]} Nf6 {[%emt 0:03:18]} 26. Rae1 {[%emt 0:
00:00]} Nh7 {[%emt 0:00:35]} 27. Ng4 {[%emt 0:04:25]} Re6 {[%emt 0:01:26]} 28.
Rxe6 {[%emt 0:00:31]} Rxe6 {[%emt 0:00:13]} 29. Rxe6 {[%emt 0:00:26]} Qxe6 {
[%emt 0:00:21]} 30. Kf2 {[%emt 0:00:11]} f5 {[%emt 0:00:44]} 31. Ne5 {[%emt 0:
00:00]} Nf6 {[%emt 0:00:33]} 32. Qe2 {[%emt 0:02:07]} Kh7 {[%emt 0:01:43]} 33.
Nd3 {[%emt 0:01:27]} Qc6 {[%emt 0:02:46]} 34. Qe3 {[%emt 0:00:59]} f4 {[%emt 0:
00:00]} 35. Qe5 {[%emt 0:01:56]} Kh6 {[%emt 0:02:18]} 36. Qf5 {[%emt 0:02:15]}
Qa4 {[%emt 0:03:26]} 37. Ne5 {[%emt 0:01:51]} Ne4+ {[%emt 0:03:54]} 38. Ke1 {
[%emt 0:00:54]} Qe8 {[%emt 0:02:59]} 39. Nf7+ {[%emt 0:00:45]} Kh5 {[%emt 0:00:
00]} 40. Qe5 {[%emt 0:00:38]} 1-0

[Event "44th Chess Olympiad Women 2022"]
[Site "Chennai"]
[Date "2022.08.05"]
[Round "7.49"]
[White "Besa, Masaiti"]
[Black "Raharimanana, Faratiana"]
[Result "1/2-1/2"]
[WhiteElo "1745"]
[BlackElo "1707"]
[Annotator "NA"]
[PlyCount "165"]
[EventDate "2022.??.??"]
[TimeControl "60"]

1. c4 {[%emt 0:00:05]} e5 {[%emt 0:00:11]} 2. g3 {[%emt 0:00:09]} Nf6 {[%emt 0:
00:00]} 3. Bg2 {[%emt 0:00:05]} c6 {[%emt 0:00:58]} 4. Nc3 {[%emt 0:00:17]} Bb4
{[%emt 0:01:08]} 5. d4 {[%emt 0:02:30]} Bxc3+ {[%emt 0:05:16]} 6. bxc3 {
[%emt 0:00:21]} Qe7 {[%emt 0:00:51]} 7. Qc2 {[%emt 0:02:36]} d6 {[%emt 0:01:22]
} 8. e3 {[%emt 0:06:13]} e4 {[%emt 0:03:07]} 9. a4 {[%emt 0:01:46]} O-O {
[%emt 0:02:21]} 10. Ne2 {[%emt 0:00:13]} Bg4 {[%emt 0:01:24]} 11. O-O {[%emt 0:
00:00]} Bf3 {[%emt 0:04:38]} 12. Ba3 {[%emt 0:07:40]} Bxg2 {[%emt 0:06:46]} 13.
Kxg2 {[%emt 0:00:08]} Re8 {[%emt 0:00:49]} 14. c5 {[%emt 0:00:25]} d5 {[%emt 0:
00:00]} 15. c4 {[%emt 0:00:27]} Nbd7 {[%emt 0:03:16]} 16. Rfb1 {[%emt 0:00:28]}
Rab8 {[%emt 0:02:22]} 17. Rb3 {[%emt 0:03:10]} dxc4 {[%emt 0:03:28]} 18. Qxc4 {
[%emt 0:00:14]} Nd5 {[%emt 0:00:14]} 19. Rab1 {[%emt 0:03:03]} N7f6 {[%emt 0:
00:00]} 20. Nc3 {[%emt 0:00:47]} Qd7 {[%emt 0:01:08]} 21. Qe2 {[%emt 0:02:18]}
Nxc3 {[%emt 0:01:05]} 22. Rxc3 {[%emt 0:00:06]} Nd5 {[%emt 0:00:09]} 23. Rcb3 {
[%emt 0:00:14]} Re7 {[%emt 0:01:31]} 24. a5 {[%emt 0:00:20]} a6 {[%emt 0:01:47]
} 25. Bc1 {[%emt 0:05:11]} g6 {[%emt 0:02:35]} 26. R1b2 {[%emt 0:02:06]} h5 {
[%emt 0:03:59]} 27. h3 {[%emt 0:01:02]} Kg7 {[%emt 0:01:21]} 28. Bd2 {[%emt 0:
00:00]} Qc8 {[%emt 0:01:47]} 29. Be1 {[%emt 0:01:34]} Qf5 {[%emt 0:00:40]} 30.
Rb1 {[%emt 0:01:00]} Qc8 {[%emt 0:02:22]} 31. R1b2 {[%emt 0:01:18]} Kh6 {
[%emt 0:04:30]} 32. Bd2 {[%emt 0:03:37]} f5 {[%emt 0:02:02]} 33. Rb1 {[%emt 0:
00:00]} g5 {[%emt 0:01:13]} 34. f3 {[%emt 0:01:57]} Qe6 {[%emt 0:01:53]} 35.
fxe4 {[%emt 0:02:04]} fxe4 {[%emt 0:09:02]} 36. Rf1 {[%emt 0:02:06]} Rf7 {
[%emt 0:01:30]} 37. Rbb1 {[%emt 0:00:31]} Rbf8 {[%emt 0:00:35]} 38. Rxf7 {
[%emt 0:04:28]} Rxf7 {[%emt 0:00:34]} 39. Rf1 {[%emt 0:00:35]} Kg6 {[%emt 0:00:
00]} 40. Rxf7 {[%emt 0:02:24]} Qxf7 {[%emt 0:00:15]} 41. Qf1 {[%emt 0:31:09]}
Qxf1+ {[%emt 0:30:13]} 42. Kxf1 {[%emt 0:00:06]} g4 {[%emt 0:00:06]} 43. hxg4 {
[%emt 0:00:58]} hxg4 {[%emt 0:00:07]} 44. Ke2 {[%emt 0:00:42]} Kf5 {[%emt 0:00:
00]} 45. Be1 {[%emt 0:01:14]} Nc7 {[%emt 0:00:32]} 46. Kd2 {[%emt 0:00:20]} Nb5
{[%emt 0:00:16]} 47. Kc2 {[%emt 0:00:16]} Ke6 {[%emt 0:00:00]} 48. Kb3 {
[%emt 0:00:10]} Kd5 {[%emt 0:00:01]} 49. Bc3 {[%emt 0:01:58]} Na7 {[%emt 0:00:
00]} 50. Be1 {[%emt 0:00:28]} Nc8 {[%emt 0:00:23]} 51. Bd2 {[%emt 0:02:26]} Ne7
{[%emt 0:00:23]} 52. Be1 {[%emt 0:00:17]} Nf5 {[%emt 0:00:24]} 53. Bf2 {
[%emt 0:00:11]} Nh6 {[%emt 0:00:12]} 54. Kc3 {[%emt 0:00:27]} Nf7 {[%emt 0:00:
00]} 55. Kb3 {[%emt 0:01:23]} Ng5 {[%emt 0:00:24]} 56. Kb4 {[%emt 0:01:08]} Nh3
{[%emt 0:01:14]} 57. Be1 {[%emt 0:00:14]} Ng1 {[%emt 0:00:40]} 58. Kc3 {
[%emt 0:01:55]} Nf3 {[%emt 0:00:35]} 59. Bf2 {[%emt 0:00:32]} Ng5 {[%emt 0:00:
00]} 60. Kb3 {[%emt 0:00:33]} Ne6 {[%emt 0:00:25]} 61. Kc3 {[%emt 0:02:53]} Ng7
{[%emt 0:00:53]} 62. Be1 {[%emt 0:00:51]} Ne8 {[%emt 0:01:11]} 63. Kb3 {
[%emt 0:00:15]} Nc7 {[%emt 0:00:06]} 64. Kb4 {[%emt 0:01:35]} Nb5 {[%emt 0:00:
00]} 65. Bc3 {[%emt 0:00:43]} Nc7 {[%emt 0:06:49]} 66. Be1 {[%emt 0:01:33]} Ne6
{[%emt 0:00:46]} 67. Kc3 {[%emt 0:00:46]} Ng5 {[%emt 0:00:11]} 68. Kb4 {
[%emt 0:03:11]} Nh3 {[%emt 0:00:17]} 69. Kb3 {[%emt 0:01:30]} Ng1 {[%emt 0:00:
00]} 70. Kc3 {[%emt 0:01:25]} Nf3 {[%emt 0:00:48]} 71. Bf2 {[%emt 0:00:14]} Nh2
{[%emt 0:00:37]} 72. Kb3 {[%emt 0:00:30]} Nf1 {[%emt 0:00:33]} 73. Kc3 {
[%emt 0:00:22]} Nh2 {[%emt 0:00:50]} 74. Kb3 {[%emt 0:00:25]} Nf3 {[%emt 0:00:
00]} 75. Kc3 {[%emt 0:00:25]} Ng5 {[%emt 0:00:48]} 76. Kb3 {[%emt 0:00:36]} Ne6
{[%emt 0:00:47]} 77. Kb4 {[%emt 0:01:39]} Nc7 {[%emt 0:00:11]} 78. Be1 {
[%emt 0:00:15]} Ne8 {[%emt 0:00:40]} 79. Kb3 {[%emt 0:00:19]} Ng7 {[%emt 0:00:
00]} 80. Kc3 {[%emt 0:00:13]} Ne6 {[%emt 0:00:09]} 81. Bf2 {[%emt 0:00:16]} Ng5
{[%emt 0:00:15]} 82. Kb3 {[%emt 0:00:36]} Nf3 {[%emt 0:00:27]} 83. Kc3 {
[%emt 0:00:13]} 1/2-1/2

[Event "44th Chess Olympiad Women 2022"]
[Site "Chennai"]
[Date "2022.08.05"]
[Round "7.49"]
[White "Rakotoniaina Tiana Johanna"]
[Black "Otisitswe Ruth"]
[Result "0-1"]
[WhiteElo "1529"]
[BlackElo "1552"]
[Annotator "NA RC"]
[PlyCount "120"]
[EventDate "2022.??.??"]
[TimeControl "60"]

1. e4 {[%emt 0:00:08]} e5 {[%emt 0:00:10]} 2. Nf3 {[%emt 0:00:10]} d6 {[%emt 0:
00:00]} 3. h3 {[%emt 0:00:33]} Nd7 {[%emt 0:00:35]} 4. d4 {[%emt 0:00:18]} c6 {
[%emt 0:00:34]} 5. Nc3 {[%emt 0:01:37]} Be7 {[%emt 0:00:25]} 6. dxe5 {[%emt 0:
00:00]} dxe5 {[%emt 0:00:08]} 7. Bc4 {[%emt 0:00:39]} Ngf6 {[%emt 0:02:35]} 8.
Bg5 {[%emt 0:00:46]} O-O {[%emt 0:00:29]} 9. O-O {[%emt 0:00:08]} h6 {[%emt 0:
00:00]} 10. Be3 {[%emt 0:00:38]} Qc7 {[%emt 0:00:30]} 11. a4 {[%emt 0:03:50]}
Re8 {[%emt 0:05:13]} 12. Qe2 {[%emt 0:09:35]} Bb4 {[%emt 0:03:28]} 13. Na2 {
[%emt 0:03:53]} Bd6 {[%emt 0:00:48]} 14. Nh4 {[%emt 0:02:09]} Nc5 {[%emt 0:00:
00]} 15. Bxc5 {[%emt 0:02:01]} Bxc5 {[%emt 0:00:05]} 16. b4 {[%emt 0:00:25]}
Bf8 {[%emt 0:01:33]} 17. b5 {[%emt 0:00:54]} cxb5 {[%emt 0:05:01]} 18. axb5 {
[%emt 0:00:44]} Be6 {[%emt 0:00:10]} 19. Bxe6 {[%emt 0:01:27]} Rxe6 {[%emt 0:
00:00]} 20. Nf5 {[%emt 0:01:10]} Rc8 {[%emt 0:01:23]} 21. c3 {[%emt 0:04:22]}
Qc4 {[%emt 0:01:45]} 22. Rfe1 {[%emt 0:05:35]} Rb6 {[%emt 0:02:24]} 23. Rab1 {
[%emt 0:04:37]} Qxe2 {[%emt 0:04:31]} 24. Rxe2 {[%emt 0:00:09]} a6 {[%emt 0:00:
00]} 25. f3 {[%emt 0:06:14]} Rxb5 {[%emt 0:03:17]} 26. Rxb5 {[%emt 0:00:20]}
axb5 {[%emt 0:00:04]} 27. Rb2 {[%emt 0:00:55]} g6 {[%emt 0:02:42]} 28. Ng3 {
[%emt 0:00:24]} Ra8 {[%emt 0:00:10]} 29. Ne2 {[%emt 0:01:15]} Nd7 {[%emt 0:00:
00]} 30. Kh2 {[%emt 0:01:21]} Ra4 {[%emt 0:09:03]} 31. Nec1 {[%emt 0:05:10]}
Ra5 {[%emt 0:01:16]} 32. Nd3 {[%emt 0:02:27]} g5 {[%emt 0:07:19]} 33. Kg3 {
[%emt 0:03:13]} Nb6 {[%emt 0:01:16]} 34. Nab4 {[%emt 0:03:43]} Nc4 {[%emt 0:00:
00]} 35. Ra2 {[%emt 0:01:35]} Bxb4 {[%emt 0:00:48]} 36. Nxb4 {[%emt 0:00:10]}
Ra4 {[%emt 0:00:05]} 37. h4 {[%emt 0:02:42]} Kg7 {[%emt 0:01:17]} 38. hxg5 {
[%emt 0:00:27]} hxg5 {[%emt 0:00:06]} 39. Kf2 {[%emt 0:00:39]} Kg6 {[%emt 0:00:
00]} 40. g4 {[%emt 0:00:32]} Kf6 {[%emt 0:01:38]} 41. Ke2 {[%emt 0:30:16]} Ke6
{[%emt 0:30:45]} 42. Rc2 {[%emt 0:02:11]} Na3 {[%emt 0:06:41]} 43. Rd2 {
[%emt 0:01:41]} Nb1 {[%emt 0:00:23]} 44. Rb2 {[%emt 0:06:55]} Nxc3+ {[%emt 0:
00:00]} 45. Kd2 {[%emt 0:02:02]} Ra3 {[%emt 0:00:11]} 46. Nc2 {[%emt 0:00:31]}
Na4 {[%emt 0:00:38]} 47. Nxa3 {[%emt 0:12:44]} Nxb2 {[%emt 0:00:12]} 48. Nxb5 {
[%emt 0:00:18]} Kd7 {[%emt 0:01:14]} 49. Nc3 {[%emt 0:00:38]} Kc6 {[%emt 0:00:
00]} 50. Nd5 {[%emt 0:01:42]} b5 {[%emt 0:00:38]} 51. Nf6 {[%emt 0:06:35]} Nc4+
{[%emt 0:02:36]} 52. Kc1 {[%emt 0:01:18]} Kc5 {[%emt 0:01:29]} 53. Nh7 {
[%emt 0:00:11]} Kd4 {[%emt 0:00:49]} 54. Kc2 {[%emt 0:00:53]} Ke3 {[%emt 0:00:
00]} 55. Nxg5 {[%emt 0:00:22]} Nd6 {[%emt 0:00:06]} 56. Kb3 {[%emt 0:00:00]}
Kf4 {[%emt 0:00:00]} 57. Kb4 {[%emt 0:00:00]} Kxg5 {[%emt 0:00:00]} 58. Kc5 {
[%emt 0:00:00]} Nxe4+ {[%emt 0:00:00]} 59. fxe4 {[%emt 0:00:00]} Kxg4 {[%emt 0:
00:00]} 60. Kd5 {[%emt 0:00:00]} Kf4 {[%emt 0:00:00]} 0-1

[Event "44th Chess Olympiad Women 2022"]
[Site "Chennai"]
[Date "2022.08.05"]
[Round "7.49"]
[White "Razafindrabiaza, Christine"]
[Black "Marape, Naledi"]
[Result "0-1"]
[WhiteElo "1635"]
[BlackElo "1714"]
[Annotator "NA RC"]
[PlyCount "68"]
[EventDate "2022.??.??"]
[TimeControl "60"]

1. e4 {[%emt 0:00:07]} c5 {[%emt 0:00:07]} 2. Nf3 {[%emt 0:00:14]} d6 {[%emt 0:
00:00]} 3. d4 {[%emt 0:00:43]} cxd4 {[%emt 0:05:50]} 4. Nxd4 {[%emt 0:00:28]}
Nf6 {[%emt 0:00:14]} 5. Bd3 {[%emt 0:00:51]} e5 {[%emt 0:00:31]} 6. Nf3 {
[%emt 0:00:18]} a6 {[%emt 0:00:28]} 7. O-O {[%emt 0:00:20]} Be7 {[%emt 0:00:12]
} 8. Nc3 {[%emt 0:00:53]} Be6 {[%emt 0:00:13]} 9. Ng5 {[%emt 0:00:34]} O-O {
[%emt 0:00:36]} 10. Nxe6 {[%emt 0:00:37]} fxe6 {[%emt 0:00:03]} 11. Rb1 {
[%emt 0:01:00]} b5 {[%emt 0:00:50]} 12. a3 {[%emt 0:00:26]} Nbd7 {[%emt 0:00:
00]} 13. Be3 {[%emt 0:00:37]} Rc8 {[%emt 0:00:21]} 14. f4 {[%emt 0:00:24]} exf4
{[%emt 0:11:16]} 15. Rxf4 {[%emt 0:00:54]} Ne5 {[%emt 0:01:42]} 16. Ne2 {
[%emt 0:02:21]} Nc4 {[%emt 0:06:04]} 17. Bxc4 {[%emt 0:00:35]} Rxc4 {[%emt 0:
00:00]} 18. Ng3 {[%emt 0:02:14]} Qc7 {[%emt 0:01:03]} 19. c3 {[%emt 0:00:40]}
d5 {[%emt 0:00:40]} 20. Qd3 {[%emt 0:02:13]} Bd6 {[%emt 0:05:32]} 21. Rxf6 {
[%emt 0:01:33]} Rxf6 {[%emt 0:01:11]} 22. exd5 {[%emt 0:00:12]} Bxg3 {[%emt 0:
00:00]} 23. hxg3 {[%emt 0:00:29]} exd5 {[%emt 0:06:47]} 24. Qxd5+ {[%emt 0:00:
00]} Qf7 {[%emt 0:00:02]} 25. Qa8+ {[%emt 0:01:24]} Qf8 {[%emt 0:00:07]} 26.
Qb7 {[%emt 0:00:37]} Qd6 {[%emt 0:01:54]} 27. Re1 {[%emt 0:06:22]} Qxg3 {
[%emt 0:01:52]} 28. Re2 {[%emt 0:00:28]} Qc7 {[%emt 0:02:47]} 29. Qd5+ {
[%emt 0:00:24]} Qf7 {[%emt 0:00:11]} 30. Qd8+ {[%emt 0:00:26]} Qf8 {[%emt 0:00:
00]} 31. Qd5+ {[%emt 0:00:05]} Kh8 {[%emt 0:00:09]} 32. Bd4 {[%emt 0:00:31]}
Rf1+ {[%emt 0:06:09]} 33. Kh2 {[%emt 0:00:13]} Qf4+ {[%emt 0:00:34]} 34. g3 {
[%emt 0:13:49]} Qh6+ {[%emt 0:01:55]} 0-1

[Event "44th Chess Olympiad Women 2022"]
[Site "Chennai"]
[Date "2022.08.05"]
[Round "7.50"]
[White "Lyons, Kieran"]
[Black "Vasquez Jaen, Lourdes Lorena"]
[Result "1/2-1/2"]
[WhiteElo "1767"]
[BlackElo "1653"]
[Annotator "NA RC"]
[PlyCount "100"]
[EventDate "2022.??.??"]
[TimeControl "60"]

1. e4 {[%emt 0:00:02]} c5 {[%emt 0:00:10]} 2. Nf3 {[%emt 0:00:07]} g6 {[%emt 0:
00:00]} 3. d4 {[%emt 0:00:07]} cxd4 {[%emt 0:00:06]} 4. Nxd4 {[%emt 0:00:03]}
Bg7 {[%emt 0:00:16]} 5. Nc3 {[%emt 0:00:10]} Nc6 {[%emt 0:00:19]} 6. Be3 {
[%emt 0:00:07]} Nf6 {[%emt 0:00:27]} 7. f3 {[%emt 0:00:04]} O-O {[%emt 0:01:31]
} 8. Qd2 {[%emt 0:00:02]} d5 {[%emt 0:01:44]} 9. Nxc6 {[%emt 0:03:50]} bxc6 {
[%emt 0:00:05]} 10. O-O-O {[%emt 0:00:58]} Qa5 {[%emt 0:07:47]} 11. Kb1 {
[%emt 0:06:21]} dxe4 {[%emt 0:12:49]} 12. Nxe4 {[%emt 0:04:00]} Qxd2 {[%emt 0:
00:00]} 13. Nxf6+ {[%emt 0:01:12]} Bxf6 {[%emt 0:00:13]} 14. Rxd2 {[%emt 0:00:
00]} Rb8 {[%emt 0:06:51]} 15. b3 {[%emt 0:00:05]} a5 {[%emt 0:10:35]} 16. a4 {
[%emt 0:00:36]} Be6 {[%emt 0:02:07]} 17. Kc1 {[%emt 0:13:37]} c5 {[%emt 0:00:
00]} 18. Bb5 {[%emt 0:06:47]} c4 {[%emt 0:16:42]} 19. Bh6 {[%emt 0:18:03]} Rfc8
{[%emt 0:06:58]} 20. Ba6 {[%emt 0:04:30]} Re8 {[%emt 0:11:32]} 21. Bb5 {
[%emt 0:10:04]} Rec8 {[%emt 0:00:14]} 22. Ba6 {[%emt 0:14:52]} Bc3 {[%emt 0:00:
00]} 23. Bxc8 {[%emt 0:10:45]} Bxd2+ {[%emt 0:00:08]} 24. Kxd2 {[%emt 0:00:04]}
Rxc8 {[%emt 0:00:14]} 25. Rb1 {[%emt 0:00:26]} cxb3 {[%emt 0:01:12]} 26. cxb3 {
[%emt 0:00:29]} Rb8 {[%emt 0:01:14]} 27. Kc3 {[%emt 0:00:04]} Rc8+ {[%emt 0:00:
00]} 28. Kb2 {[%emt 0:00:04]} f6 {[%emt 0:04:12]} 29. Rc1 {[%emt 0:00:27]} Rb8
{[%emt 0:00:26]} 30. Rc3 {[%emt 0:00:23]} g5 {[%emt 0:01:01]} 31. f4 {[%emt 0:
00:00]} gxf4 {[%emt 0:00:03]} 32. Bxf4 {[%emt 0:00:04]} Rd8 {[%emt 0:01:04]}
33. h4 {[%emt 0:00:26]} Rd4 {[%emt 0:00:17]} 34. g3 {[%emt 0:00:19]} Bf7 {
[%emt 0:00:38]} 35. Bh6 {[%emt 0:00:34]} Bg6 {[%emt 0:00:34]} 36. Rc4 {[%emt 0:
00:00]} Rd5 {[%emt 0:00:21]} 37. b4 {[%emt 0:00:35]} axb4 {[%emt 0:00:15]} 38.
Rxb4 {[%emt 0:00:04]} e5 {[%emt 0:00:44]} 39. Rb5 {[%emt 0:00:47]} Rd4 {
[%emt 0:00:40]} 40. a5 {[%emt 0:00:36]} Ra4 {[%emt 0:00:33]} 41. Bd2 {[%emt 0:
00:00]} Bd3 {[%emt 0:10:48]} 42. Rb4 {[%emt 0:00:00]} Rxb4+ {[%emt 0:00:05]}
43. Bxb4 {[%emt 0:00:00]} Kf7 {[%emt 0:00:16]} 44. Kc3 {[%emt 0:00:00]} Bf1 {
[%emt 0:00:09]} 45. Kd2 {[%emt 0:00:00]} Ke6 {[%emt 0:00:15]} 46. Ke3 {[%emt 0:
00:00]} h5 {[%emt 0:01:41]} 47. Bc5 {[%emt 0:00:00]} f5 {[%emt 0:03:17]} 48.
Ba7 {[%emt 0:00:00]} Kd5 {[%emt 0:00:50]} 49. Bb8 {[%emt 0:00:00]} Ba6 {
[%emt 0:00:31]} 50. Bc7 {[%emt 0:00:00]} Bf1 {[%emt 0:00:11]} 1/2-1/2